{"text_format":"1","workbook":"xlsx","n_sheets":5,"sheets":["Titelblatt","Bemerkungen zum Angebot","Zusammenstellung","Auftraggeber","Kalkulation"],"not_rendered":{"charts":0,"images":2,"macros":1,"external_links":0,"defined_names":8,"comments":1,"pivot_tables":0},"unopened":[],"bounds":{"document_bytes":16777216,"sheet_cells":100000,"rows_first":2000,"rows_last":500,"rows_between":2000,"halvings":0,"cell_chars":16384,"cell_head_chars":4096},"cells_cut":0,"cells_raw":0,"read":"whole","date_system":"1900"}

{"sheet":"Titelblatt","index":0,"n_rows":26,"n_cols":6,"rows_kept":26,"cut":false,"hidden":false,"merged":[[4,2,4,4],[4,5,4,12],[0,0,0,1],[0,5,1,12],[2,2,2,4],[2,5,2,12],[3,2,3,3],[15,5,15,12],[5,2,5,3],[6,2,6,4],[6,5,6,12],[7,2,7,3],[8,2,8,4],[8,5,8,12],[9,2,9,3],[10,2,10,4],[12,2,12,4],[14,2,14,4],[15,2,15,3],[16,1,16,2],[16,3,16,4],[16,5,16,12],[17,1,17,2],[17,3,17,4],[17,5,17,12],[18,1,18,2],[19,1,25,2],[20,5,20,12],[21,5,21,12],[22,5,22,12],[23,5,23,12],[24,5,24,12],[25,5,25,12]]}
["Bau- und Justizdepartement",null,null,null,null,"administrative Angaben einfügen,\nrote Felder sind durch den Ausschreibenden auszufüllen"]
[null,"Amt für Verkehr und Tiefbau"]
[null,"Gemeinde",null,null,null,"z.B. Solothurn / Buchegg, Orsteil Brittern"]
[]
[null,"Strasse",null,null,null,"z.B. Baselstrasse"]
[]
[null,"Abschnitt / Objekt",null,null,null,"z.B. Kreisel Baseltor - Obere Sternengasse / Rötibrücke"]
[]
[null,"Projekt",null,null,null,"z.B. Strassensanierung"]
[]
[null,"Projektphase","Ausschreibung Ingenieurleistungen"]
[]
[null,"Inhalt","Dokument D\nPreisangebot"]
[]
[null,"Übersicht"]
[null,"Eingabetermin",null,null,null,"z.B. Donnerstag, 15. Februar 2018 (Wochentag, T. Montat Jahr)"]
[null,"(Logo einfügen)",null,"Anbieter\nStrasse Nr.\nPLZ Ort",null,"Logo des Anbieters einfügen\nName und Adresse des Anbieters eintragen"]
[null,"Angebotssumme inkl. MwSt.",null,{"$f":"Zusammenstellung!E26","v":0},null,"Angebotssumme wird automatisch übernommen"]
[null,"Unterschrift"]
[null,"Amt für Verkehr und Tiefbau\nRötihof, Werkhofstrasse 65, 4509 Solothurn\nTelefon 032 627 26 33\navt@bd.so.ch / avt.so.ch",null,"Achs-Nr."]
[null,null,null,"Bezugspunkt (BP)",null,"xxxx + xxxx m  bis  xxxx + xxxx m"]
[null,null,null,"Achs-Nr.",null,"wenn keine 2. Achse = \"-\" Bindestrich eintragen (inkl. BP)"]
[null,null,null,"Bezugspunkt (BP)",null,"wenn keine 2. Achse = \"-\" Bindestrich eintragen (inkl. BP)"]
[null,null,null,"Objekt-Nr. KB",null,"X/X/X"]
[null,null,null,"Projekt-Nr.",null,"XTK.XXXXX.Y"]
[null,null,null,"Solothurn,",null,"z.B. 15. Februar 2018 (T. Montat Jahr)"]

{"sheet":"Bemerkungen zum Angebot","index":1,"n_rows":60,"n_cols":13,"rows_kept":60,"cut":false,"hidden":false,"merged":[[2,0,2,8],[3,0,3,8],[5,0,5,8],[5,10,8,18],[6,1,6,8],[7,1,7,8],[8,1,8,8],[20,10,23,18],[21,3,21,4],[22,0,22,8],[23,3,23,4],[9,0,9,8],[10,0,10,8],[13,0,13,1],[13,10,16,18],[14,0,14,1],[16,1,16,8],[33,1,33,8],[17,1,17,8],[18,1,18,8],[19,0,19,8],[20,0,20,8],[25,0,25,8],[27,0,27,8],[29,0,29,8],[31,0,31,8],[32,1,32,8],[56,0,56,8],[59,0,59,8],[59,10,61,17],[34,1,34,8],[49,0,49,8],[51,10,53,18],[52,0,52,7],[55,0,55,8],[36,10,43,17]]}
["1.","Bemerkungen zum Preisangebot"]
["1.1.","Allgemeines",null,null,null,null,null,null,null,null,null,null,false]
["Es sind Nettoangebote einzureichen. Allfällige Rabatte, Skonti sowie die Mehrwertsteuer sind im Angebot aufzuführen.",null,null,null,null,null,null,null,null,null,null,null,false]
["Die für die Bewertung massgebende Angebotssumme setzt sich zusammen aus der Summe der Honorarkosten für die Leistungen gemäss Dokument B, den Nebenkosten, einem allfälligen Rabatt, einem allfälligen Skonto und der Mehrwertsteuer.",null,null,null,null,null,null,null,null,null,null,null,false]
["1.2.","Kalkulationsmodell für die Berechnung des Zeitaufwandes"]
["Für die Kalkulation des Zeitaufwands können drei unterschiedliche Modelle zur Anwendung gelangen. Das oder die zur Anwendung gelangenen Modelle sind nachstehend angekreuzt.",null,null,null,null,null,null,null,null,null,"Das jeweilige Modell für die Berechnung des Stundaufwands ist aus drei Möglichkeiten auszuwählen "]
[null,"Zeitaufwandsberechnung nach den Baukosten\nDas Kalkulationsmodell basiert auf der Kalkulationshilfe zur sia 103, Ausgabe 2014 (überarbeitete 2. Auflage), Art. 7. Der Zeitaufwand für die gemäss Dokument B besonders vereinbarten Leistungen wird über den Faktor für Sonderleistungen s (Art. 7.4, Kalkulationshilfe zur sia 103, Ausgabe 2014 (überarbeitete 2. Auflage), siehe Bemerkung weiter unten) berechnet. Der Teamfaktor i (Art. 7.3, Kalkulationshilfe zur sia 103, Ausgabe 2014 (überarbeitete 2. Auflage), siehe Bemerkung weiter unten) kann durch den Anbieter in seitens Bauherrn definierten Grenzen festgelegt werden."]
[null,"Angabe Zeitaufwand durch den Anbieter\nDer Zeitaufwand für die Leistungserbringung einer Teilphase ist vom Anbieter zu berechnen und im Tabellenblatt \"Kalkulation\" auszuweisen.  Daneben ist auch der Zeitaufwand für die besonders vereinbarten Leistungen einzurechnen."]
[null,"Angabe Zeitaufwand durch den Auftraggeber\nDer Zeitaufwand für für die Leistungserbringung einer Teilphase und für die zugehörigen besonders vereinbarten Leistungen wird vom Auftraggeber vorgegeben; der Anbieter hat die Verteilung des Zeitaufwands im Tabellenblatt \"Kalkulation\" auszuweisen."]
["Vorgaben\nIm Tabellenblatt \"Auftraggeber\" sind die Vorgaben des Auftraggebers ersichtlich."]
["Stundenanteil Schlüsselpersonen\nDer Stundenanteil der Schlüsselpersonen an der Gesamtstundenzahl muss mindestens 40% betragen."]
["1.3.","Preisgestaltung und Vergütung"]
["Bürospezifische Stundenansätze:"]
["Kat.",null,"A","B","C","D","E","F","G",null,"Es sind nur die Gelb markierten Felder und die Stundenansätze auszufüllen, diese werden automatisch in die Kalkulation übertragen! Farbe ändert sich nach Eingabe automatisch!"]
["CHF/Std."]
[]
["Z","Die Vergütung erfolgt im Zeittarif nach effektivem Aufwand und offerierten Stundenansätzen."]
["P","Die Vergütung erfolgt als Pauschale, wobei die aufzuwendenden Stunden gleichwohl pro Person anzugeben sind."]
["G","Die Vergütung erfolgt als teuerungsbereinigte Pauschale, wobei die aufzuwendenden Stunden gleichwohl pro Person anzugeben sind."]
["Die Vergütungsart ist im Tabellenblatt \"Zusammenstellung\" vom Auftraggeber pro Teilphase vorgegeben bzw. festgelegt. "]
["Teamfaktor i (gemäss Art. 7.3, Kalkulationshilfe zur sia 103, Ausgabe 2014 (überarbeitete 2. Auflage); durch Anbieter festzulegen; wird bewertet, vgl. Zuschlagskriterien im Dokument A)",null,null,null,null,null,null,null,null,null,"Gelbe Felder ausfüllen, Farbe ändert sich nach Eingabe automatisch; rote Farbe bedeutet, dass Feld nicht korrekt ausgefüllt wurde"]
[null,null,null,"0.5 ≤ i ≤ 1.0"]
["Faktor für Sonderleistungen s (gemäss Art. 7.4, Kalkulationshilfe zur sia 103, Ausgabe 2014 (überarbeitete 2. Auflage); durch den Anbieter festzulegen, um den Zeitaufwand für die besonders vereinbarten Leistungen gemäss Dokument B einzurechnen)"]
[null,null,null,"1.0 ≤ s "]
["1.4 .","Umgang mit Änderung der Baukosten"]
["Im Falle einer Berechnung des Zeitaufwand nach den Baukosten: \nEine Anpassung des Kostendachs bzw. der Pauschale/Globale erfolgt nur, wenn sich aufgrund der Änderung der Baukosten auch zusätzliche Leistungen bzw. Minderleistungen für den Anbieter ergeben und sich die Baukosten gemäss genehmigtem Kostenvoranschlag gegenüber der ursprünglichen Baukostenschätzung des Auftraggebers (Ba, Bp) mehr als 10% geändert haben. In diesem Fall erfolgt die Anpassung auf Basis von Ziffer 1.2."]
["1.5.","Nachträge"]
["Nachträge infolge Zusatzleistungen und Bestellungsänderungen sind vor Inangriffnahme der Arbeiten anzumelden. Bei verspäteter Anmeldung entfällt die Honorierung. Solche Nachträge werden auf derselben Basis und mit denselben Konditionen vergütet wie die hier ausgeschriebenen Leistungen."]
["1.6.","Umgang mit Kostendach"]
["Die offerierten Leistungen für die Teilphasen 31-41 sowie 51-53 gelten jeweils als separates Kostendach."]
["1.7.","Nebenkosten"]
["Unter Nebenkosten fallen:"]
[null,"-     Kosten für Reisezeiten und -spesen, Verpflegung etc."]
[null,"-     Kosten für die Erstellung entsprechender Fotokopien, Dossiers und Plots"]
[null,"-     Dokumentationskosten:\n       -   als Dokumentationskosten gelten Arbeitspapiere, sowie folgende Dossiers:"]
[null,"4.3.31","- Vernehmlassungsdossier Vorprojekt:",null,null,null,null,null,"Exemplare"]
[null,"4.3.31","- Vorprojekt:",null,null,null,null,null,"Exemplare",null,"Rosa Felder sind durch den Ausschreibenden vorzugeben und auszufüllen, Farbe ändert sich nach Eingabe automatisch"]
[null,"4.3.32","- Vernehmlassungsdossier Bauprojekt:",null,null,null,null,null,"Exemplare"]
[null,"4.3.32","- Bauprojekt:",null,null,null,null,null,"Exemplare"]
[null,"4.3.32","- Agglodossiers:",null,null,null,null,null,"Exemplare"]
[null,"4.3.33","- Vernehmlassungsdossier Auflagedossier:",null,null,null,null,null,"Exemplare"]
[null,"4.3.33","- Auflagedossier:",null,null,null,null,null,"Exemplare"]
[null,"4.3.33","- Genehmigter Erschliessungsplan (AVT, KBA):",null,null,null,null,"3","Exemplare"]
[null,"4.3.33","- Genehmigtes Auflagedossier (AVT, Gde):",null,null,null,null,"2","Exemplare"]
[null,"4.3.41","- Submission (inkl. Bereitstellung für Simap)",null,null,null,null,null,"Exemplare"]
[null,"4.3.51/52","- Ausführungsprojekt / Baustellenpläne:",null,null,null,null,"übliche Anzahl","Exemplare"]
[null,"4.3.52","- Agglodossiers inkl. Abrechnung:",null,null,null,null,null,"Exemplare"]
[null,"4.3.53","- Dokumente des ausgeführten Werkes (PAW):",null,null,null,null,null,"Exemplare"]
[]
["Diese sind mit einem Prozentsatz abzuschätzen."]
[]
["1.8.","Kosten für weitere Unterlagen"]
["Weitere Dossiers und Submissionsdossiers werden nach den ortsüblichen Reprotarifen separat nach Aufwand vergütet."]
[]
["1.9.","Preisänderungsabrechnung"]
["Eine allfällige Preisänderungsabrechnung erfolgt gemäss der letzten, zur Zeit des Vertragsabschlusses publizierten Empfehlung zur Honorierung der KBOB, erhältlich unter www.kbob.ch."]
["Die Preisänderungsabrechnung erfolgt erst ab einer mit der Gleitpreisformel berechneten Veränderung von über 2 % (Berechnung erfolgt mit dem Nominallohnindex der Wirtschaftszweige 70-74)."]
[]
["1.10.","Rechnungsstellung, Zahlungsbedingungen"]
["Die Rechnungsstellung erfolgt monatlich/quartalsweise. Die Zahlungsfrist beträgt 30 Tage. Ein offerierter Skonto gilt bei Bezahlung innerhalb dieser Frist.\n\nRechnungsadresse:\nAmt für Finanzen\nDLZ Kreditoren\nBarfüssergasse 24\n4509 Solothurn\n\nBei der Rechnung ist zwingend die Bestellnummer zu vermerken.",null,null,null,null,null,null,null,null,null,"Angaben zur Rechnungsstellung allenfalls anpassen (z.B. quartalsweise)"]

{"sheet":"Zusammenstellung","index":2,"n_rows":35,"n_cols":9,"rows_kept":35,"cut":false,"hidden":false,"merged":[[34,0,34,4],[27,0,32,4],[3,6,6,13],[1,0,1,1],[9,0,9,1],[10,0,10,1],[11,6,13,9],[14,5,20,9]]}
["2. Zusammenstellung des Angebotes"]
["Gliederung der Leistungen nach sia 103, Art. 4.3",null,"Z/P/G","Aufwand\n[h]","Aufwand\n[CHF]",null,null,"Z","Zeittarif"]
["4.3.31","Vorprojekt",{"$f":"IF(Auftraggeber!M11=FALSE,\"-\",IF(Auftraggeber!U11=TRUE,\"Z\",IF(Auftraggeber!G25=\"nein\",\"P\",\"G\")))","v":"-"},{"$f":"Kalkulation!E$35","v":0},{"$f":"Kalkulation!E$36","v":0}]
["4.3.32","Bauprojekt",{"$f":"IF(Auftraggeber!M12=FALSE,\"-\",IF(Auftraggeber!U12=TRUE,\"Z\",IF(Auftraggeber!G25=\"nein\",\"P\",\"G\")))","v":"-"},{"$f":"Kalkulation!F$35","v":0},{"$f":"Kalkulation!F$36","v":0}]
["4.3.33","Bewilligungsverfahren / Auflageprojekt",{"$f":"IF(Auftraggeber!M13=FALSE,\"-\",IF(Auftraggeber!U13=TRUE,\"Z\",IF(Auftraggeber!G25=\"nein\",\"P\",\"G\")))","v":"-"},{"$f":"Kalkulation!G$35","v":0},{"$f":"Kalkulation!G$36","v":0}]
["4.3.41","Ausschreibung, Offertvergleich, Vergabeantrag",{"$f":"IF(Auftraggeber!M14=FALSE,\"-\",IF(Auftraggeber!U14=TRUE,\"Z\",IF(Auftraggeber!G25=\"nein\",\"P\",\"G\")))","v":"-"},{"$f":"Kalkulation!H$35","v":0},{"$f":"Kalkulation!H$36","v":0}]
["4.3.51","Ausführungsprojekt",{"$f":"IF(AND(Auftraggeber!M15=FALSE,Auftraggeber!M16=FALSE),\"-\",IF(Auftraggeber!U15=TRUE,\"Z\",IF(Auftraggeber!G25=\"nein\",\"P\",\"G\")))","v":"-"},{"$f":"Kalkulation!I$35","v":0},{"$f":"Kalkulation!I$36","v":0}]
["4.3.52","Ausführung",{"$f":"IF(Auftraggeber!M17=FALSE,\"-\",IF(Auftraggeber!U17=TRUE,\"Z\",IF(Auftraggeber!G25=\"nein\",\"P\",\"G\")))","v":"-"},{"$f":"Kalkulation!J$35","v":0},{"$f":"Kalkulation!J$36","v":0}]
["4.3.53","Inbetriebnahme, Abschluss",{"$f":"IF(Auftraggeber!M18=FALSE,\"-\",IF(Auftraggeber!U18=TRUE,\"Z\",IF(Auftraggeber!G25=\"nein\",\"P\",\"G\")))","v":"Z"},{"$f":"Kalkulation!K$35","v":0},{"$f":"Kalkulation!K$36","v":0}]
["*Z=Zeittarif mit Kostendach; P=Pauschale; G=teuerungsbereinigte Pauschale"]
[]
["Zusammenstellung:"]
[]
["Honorar Leistungen gemäss Dokument B ",null,null,null,{"$f":"SUM(E3:E9)","v":0}]
["Nebenkosten (%-Satz v. Honorar)",null,null,"[%]",{"$f":"MROUND(SUM(E14:E14)*C15%,0.05)","v":0},"gelbe Felder ausfüllen, auch mit \"0\"!\nFarbe ändert sich nach Eingabe"]
[]
["Zwischentotal 1",null,null,null,{"$f":"SUM(E14:E15)","v":0}]
["Rabatt",null,null,"[%]",{"$f":"MROUND(E17*C18%,0.05)","v":0}]
[]
["Zwischentotal 2",null,null,null,{"$f":"E17-E18","v":0}]
["Skonto",null,null,"[%]",{"$f":"MROUND(E20*C21%,0.05)","v":0}]
[]
["Zwischentotal 3",null,null,null,{"$f":"E20-E21","v":0}]
["MwSt. 7.7 %",null,null,null,{"$f":"MROUND(E23*0.077,0.05)","v":0}]
[]
["Angebotssumme netto inkl. MwSt. wird auf Titelblatt übertragen",null,null,null,{"$f":"E23+E24","v":0}]
[]
[]
[]
[]
[]
[]
[]
["_____________________________",null,null,null,"______________________________________________"]
["Ort, Datum                                                                Firmenstempel und Unterschrift(en)                   "]

{"sheet":"Auftraggeber","index":3,"n_rows":38,"n_cols":27,"rows_kept":38,"cut":false,"hidden":false,"merged":[[31,2,31,3],[16,10,16,11],[10,10,10,11],[11,10,11,11],[12,10,12,11],[13,10,13,11],[14,10,14,11],[26,0,26,3],[27,0,27,3],[18,0,18,5],[17,10,17,11],[28,0,28,3],[29,0,29,3],[7,8,7,9],[8,8,9,8],[8,9,9,9],[19,0,19,3],[20,0,20,3],[7,0,9,0],[7,2,9,2],[7,3,9,3],[8,4,8,5],[8,6,9,6],[7,4,7,7],[8,7,9,7],[9,16,9,18],[22,0,22,3],[14,25,15,25],[9,22,9,24],[14,20,15,20],[14,21,15,21],[14,22,15,22],[14,23,15,23],[14,24,15,24],[15,10,15,11]]}
[]
[]
[]
[]
[null,null,null,"einfachere Aufgaben"]
[null,null,null,"anspruchsvolle Aufgaben"]
[null,null,null,"sehr anspruchsvolle Aufgaben"]
["Phase ",null,"Teilphase","Bestandteil Submission","Kalkulationsmodell",null,null,null,"Vergütungsmodell"]
[null,null,null,null,"Honorarberechnung nach den Baukosten",null,"Stunden-schätzung  Anbieter","Stunden-schätzung Bauherr","Zeitaufwand mit Kosten-dach","Pauschale Vergütung*"]
[null,null,null,null,null,"q",null,null,null,null,null,null,"Bestandteil","SIA","Anbieter","Bauherr","Kontrolle KM",null,null,null,"ZA mit KD","Pauschal","Kontrolle KM",null,null,"Kontrolle"]
["3 Projektierung",31,"Vorprojekt",null,null,{"$f":"IF(N11=TRUE,0.08,0)","v":0},null,null,null,null,{"$f":"IF(F11=0,0,IF(O11=TRUE,\"-\",ROUND($E$27*$E$31/100*$E$32*F11*$E$23*'Bemerkungen zum Angebot'!$B$24*'Bemerkungen zum Angebot'!$B$22*$M$20,0)))","v":0},null,false,false,false,false,{"$f":"IF(OR(AND(N11=TRUE,O11=TRUE),AND(N11=TRUE,P11=TRUE),AND(P11=TRUE,O11=TRUE)),0,1)","v":1},{"$f":"IF(OR(N11=TRUE,O11=TRUE,P11=TRUE),1,0)","v":0},{"$f":"IF(AND(AND(Q11=1,R11=1),M11=TRUE),1,0)","v":0},{"$f":"IF(N11=FALSE,TRUE,FALSE)","v":true},false,false,{"$f":"IF(AND(U11=TRUE,V11=TRUE),0,1)","v":1},{"$f":"IF(OR(U11=TRUE,V11=TRUE),1,0)","v":0},{"$f":"IF(AND(AND(W11=1,X11,1),M11=TRUE),1,0)","v":0},{"$f":"IF(OR(AND(M11=TRUE,S11=1,Y11=1),AND(M11=FALSE,N11=FALSE,O11=FALSE,P11=FALSE,U11=FALSE,V11=FALSE)),1,0)","v":1}]
[null,32,"Bauprojekt",null,null,{"$f":"IF(N12=TRUE,0.22,0)","v":0},null,null,null,null,{"$f":"IF(F12=0,0,IF(O12=TRUE,\"-\",ROUND($E$27*$E$31/100*$E$32*F12*$E$23*'Bemerkungen zum Angebot'!$B$24*'Bemerkungen zum Angebot'!$B$22*$M$20,0)))","v":0},null,false,false,false,false,{"$f":"IF(OR(AND(N12=TRUE,O12=TRUE),AND(N12=TRUE,P12=TRUE),AND(P12=TRUE,O12=TRUE)),0,1)","v":1},{"$f":"IF(OR(N12=TRUE,O12=TRUE,P12=TRUE),1,0)","v":0},{"$f":"IF(AND(AND(Q12=1,R12=1),M12=TRUE),1,0)","v":0},true,false,false,{"$f":"IF(AND(U12=TRUE,V12=TRUE),0,1)","v":1},{"$f":"IF(OR(U12=TRUE,V12=TRUE),1,0)","v":0},{"$f":"IF(AND(AND(W12=1,X12,1),M12=TRUE),1,0)","v":0},{"$f":"IF(OR(AND(M12=TRUE,S12=1,Y12=1),AND(M12=FALSE,N12=FALSE,O12=FALSE,P12=FALSE,U12=FALSE,V12=FALSE)),1,0)","v":1}]
[null,33,"Bewilligungsverfahren / Auflageprojekt",null,null,{"$f":"IF(N13=TRUE,0.02,0)","v":0},null,null,null,null,{"$f":"IF(F13=0,0,IF(O13=TRUE,\"-\",ROUND($E$27*$E$31/100*$E$32*F13*$E$23*'Bemerkungen zum Angebot'!$B$24*'Bemerkungen zum Angebot'!$B$22*$M$20,0)))","v":0},null,false,false,false,false,1,0,{"$f":"IF(AND(AND(Q13=1,R13=1),M13=TRUE),1,0)","v":0},true,false,false,1,0,{"$f":"IF(AND(AND(W13=1,X13,1),M13=TRUE),1,0)","v":0},1,"Orange Felder sind durch den Ausschreibenden zu wählen"]
["4 Ausschreibung",41,"Ausschreibung, Offertvergleich, Vergabeantrag",null,null,{"$f":"IF(N14=TRUE,0.1,0)","v":0},null,null,null,null,{"$f":"IF(F14=0,0,IF(O14=TRUE,\"-\",ROUND($E$27*$E$31/100*$E$32*F14*$E$23*'Bemerkungen zum Angebot'!$B$24*'Bemerkungen zum Angebot'!$B$22*$M$20,0)))","v":0},null,false,false,false,false,1,0,{"$f":"IF(AND(AND(Q14=1,R14=1),M14=TRUE),1,0)","v":0},true,false,false,1,0,{"$f":"IF(AND(AND(W14=1,X14,1),M14=TRUE),1,0)","v":0},1,"Zeilen erscheinen rot bis sie korrekt ausgefüllt sind (Bestandteil + ein Kalkulationsmodell + ein Vergütungsmodell)"]
["5 Realisierung",51,"Ausführungsprojekt",null,null,{"$f":"IF(N15=TRUE,0.18,0)","v":0},null,null,null,null,{"$f":"IF(F15=0,0,IF(O15=TRUE,\"-\",ROUND($E$27*$E$31/100*$E$32*F15*$E$23*'Bemerkungen zum Angebot'!$B$24*'Bemerkungen zum Angebot'!$B$22*$M$20,0)))","v":0},null,false,false,false,false,1,0,{"$f":"IF(OR(AND(Q15=1,R15=1,M15=TRUE),AND(Q15=1,R15=0,M15=FALSE)),1,0)","v":1},true,false,false,{"$f":"IF(AND(U15=TRUE,V15=TRUE),0,1)","v":1},{"$f":"IF(OR(U15=TRUE,V15=TRUE),1,0)","v":0},{"$f":"IF(OR(AND(W15=1,X15=1,OR(M15=TRUE,M16=TRUE)),AND(W15=1,X15=0,AND(M15=FALSE,M16=FALSE))),1,0)","v":1},{"$f":"IF(AND(S15=1,S16=1,Y15=1),1,0)","v":1}]
[null,51,"Zuschlag für Anteil Tragkonstruktion",null,null,{"$f":"IF(N16=TRUE,0.3,0)","v":0},null,null,null,null,{"$f":"IF(F16=0,0,IF(O16=TRUE,\"-\",ROUND($E$28*$E$31/100*$E$32*F16*$E$23*'Bemerkungen zum Angebot'!$B$24*'Bemerkungen zum Angebot'!$B$22*$M$20,0)))","v":0},null,false,false,false,false,1,0,{"$f":"IF(OR(AND(Q16=1,R16=1,M16=TRUE),AND(Q16=1,R16=0,M16=FALSE)),1,0)","v":1},true]
[null,52,"Bauleitung",null,null,{"$f":"IF(N17=TRUE,0.37,0)","v":0},null,null,null,null,{"$f":"IF(F17=0,0,IF(O17=TRUE,\"-\",ROUND($E$27*$E$31/100*$E$32*F17*$E$23*'Bemerkungen zum Angebot'!$B$24*'Bemerkungen zum Angebot'!$B$22*$M$21,0)))","v":0},null,false,false,false,false,{"$f":"IF(OR(AND(N17=TRUE,O17=TRUE),AND(N17=TRUE,P17=TRUE),AND(P17=TRUE,O17=TRUE)),0,1)","v":1},{"$f":"IF(OR(N17=TRUE,O17=TRUE,P17=TRUE),1,0)","v":0},{"$f":"IF(AND(AND(Q17=1,R17=1),M17=TRUE),1,0)","v":0},{"$f":"IF(N17=FALSE,TRUE,FALSE)","v":true},false,false,{"$f":"IF(AND(U17=TRUE,V17=TRUE),0,1)","v":1},{"$f":"IF(OR(U17=TRUE,V17=TRUE),1,0)","v":0},{"$f":"IF(AND(AND(W17=1,X17,1),M17=TRUE),1,0)","v":0},{"$f":"IF(OR(AND(M17=TRUE,S17=1,Y17=1),AND(M17=FALSE,N17=FALSE,O17=FALSE,P17=FALSE,U17=FALSE,V17=FALSE)),1,0)","v":1}]
[null,53,"Inbetriebnahme, Abschluss",null,null,{"$f":"IF(N18=TRUE,0.03,0)","v":0.03},null,null,null,null,{"$f":"IF(F18=0,0,IF(O18=TRUE,\"-\",ROUND($E$27*$E$31/100*$E$32*F18*$E$23*'Bemerkungen zum Angebot'!$B$24*'Bemerkungen zum Angebot'!$B$22*$M$20,0)))","v":0},null,true,true,false,false,1,1,{"$f":"IF(AND(AND(Q18=1,R18=1),M18=TRUE),1,0)","v":1},false,true,false,1,1,{"$f":"IF(AND(AND(W18=1,X18,1),M18=TRUE),1,0)","v":1},{"$f":"IF(OR(AND(M18=TRUE,S18=1,Y18=1),AND(M18=FALSE,N18=FALSE,O18=FALSE,P18=FALSE,U18=FALSE,V18=FALSE)),1,0)","v":1}]
[]
["Gesamtleitung",null,null,null,"ja",null,null,null,null,null,null,null,{"$f":"IF(E20=\"ja\",1.1,1)","v":1.1000000000000001},null,"ja"]
["Oberbauleitung",null,null,null,"ja",null,null,null,null,null,null,null,{"$f":"IF(E21=\"ja\",1.1,1)","v":1.1000000000000001},null,"nein"]
[]
["Anpassungsfaktor r",null,null,null,1]
[null,null,null,null,null,null,null,null,null,null,null,null,"nein"]
[null,null,null,null,null,"* teuerungsbereinigt","nein",null,null,null,null,null,"ja"]
[]
["Baukosten (Ba = Bp) [CHF]",null,null,null,1000000,null,null,null,null,null,null,null,{"$f":"IF(OR(N11=TRUE,N12=TRUE,N13=TRUE,N14=TRUE,N15=TRUE,N16=TRUE,N17=TRUE,N18=TRUE),1,0)","v":1},null,null,null,null,null,null,null,null,null,null,null,null,null,"Rosa Felder sind durch den Ausschreibenden auszufüllen, Farbe ändert sich nach Eingabe"]
["Baukosten Anteil Tragkonstruktion [CHF]",null,null,null,1000000]
["Z1-Wert (Quantil=0.5) (2018)",null,null,null,4.8989999999999999E-2]
["Z2-Wert (Quantil=0.5) (2018)",null,null,null,8.8660200000000007]
["Grundfaktor für Stundenaufwand p",null,null,null,{"$f":"$E$29+$E$30/(E27)^(1/3)","v":0.13765020000000006}]
["Schwierigkeitsgrad n",null,"anspruchsvolle Aufgaben",null,1,null,null,null,null,null,null,null,null,null,null,null,null,null,null,null,null,null,null,null,null,null,"Schwierigkeitsgrad liegt in der Regel zwischen 0.8 (einfache Aufgaben) und 1.2 (sehr anspruchsvolle und komplexe Aufgaben)"]
[]
[]
[]
[null,null,"einfachere Aufgaben"]
[null,null,"anspruchsvolle Aufgaben"]
[null,null,"sehr anspruchsvolle Aufgaben"]

{"sheet":"Kalkulation","index":4,"n_rows":40,"n_cols":15,"rows_kept":40,"cut":false,"hidden":false,"merged":[[27,0,27,1],[15,0,15,1],[16,0,16,1],[18,0,18,12],[19,0,19,1],[22,0,22,1],[23,0,23,1],[24,0,24,1],[20,0,20,1],[21,0,21,1],[25,0,25,1],[26,0,26,1],[35,0,35,1],[28,0,28,1],[29,0,29,1],[30,0,30,1],[31,0,31,1],[33,1,33,10],[34,0,34,1],[18,15,19,22],[1,12,2,12],[7,2,8,2],[7,3,8,3],[2,0,2,3],[3,0,3,3],[4,0,4,3],[5,0,5,3],[6,0,6,3],[1,0,1,3],[1,14,14,21],[16,14,17,22],[0,0,0,12],[8,0,8,1],[1,4,1,10],[7,0,7,1],[7,4,8,4],[7,5,8,5],[7,6,8,6],[7,9,8,9],[7,10,8,10],[7,7,8,7],[7,8,8,8]]}
["Aufwand der Leistungen gemäss Dokument B"]
[null,null,null,null,null,null,null,null,null,null,null,"Total [h]","Total \n[CHF]",null,"Rote Felder zeigen an, dass die Kalkulation nicht korrekt vorgenommen wurde, d.h. dass Randbedingungen (z.B. Zeitaufwand gemäss Kalkulationsmodell, Stundenanteil Schlüsselpersonen) nicht eingehalten sind!"]
["Zeitaufwandsberechnung nach den Baukosten",null,null,null,{"$f":"IF(Auftraggeber!N11=TRUE,Auftraggeber!K11,\"-\")","v":"-"},{"$f":"IF(Auftraggeber!N12=TRUE,Auftraggeber!K12,\"-\")","v":"-"},{"$f":"IF(Auftraggeber!N13=TRUE,Auftraggeber!K13,\"-\")","v":"-"},{"$f":"IF(Auftraggeber!N14=TRUE,Auftraggeber!K14,\"-\")","v":"-"},{"$f":"IF(Auftraggeber!N15=TRUE,IF(Auftraggeber!N16=TRUE,Auftraggeber!K15+Auftraggeber!K16,Auftraggeber!K15),IF(Auftraggeber!N16=TRUE,Auftraggeber!K16,\"-\"))","v":"-"},{"$f":"IF(Auftraggeber!N17=TRUE,Auftraggeber!K17,\"-\")","v":"-"},{"$f":"IF(Auftraggeber!N18=TRUE,Auftraggeber!K18,\"-\")","v":0},{"$f":"SUM(E3:K3)","v":0}]
["Angabe Zeitaufwand durch den Anbieter",null,null,null,{"$f":"IF(Auftraggeber!O11=TRUE,\"\",\"-\")","v":"-"},{"$f":"IF(Auftraggeber!O12=TRUE,\"\",\"-\")","v":"-"},{"$f":"IF(Auftraggeber!O13=TRUE,\"\",\"-\")","v":"-"},{"$f":"IF(Auftraggeber!O14=TRUE,\"\",\"-\")","v":"-"},{"$f":"IF(OR(Auftraggeber!O15=TRUE,Auftraggeber!O16=TRUE),\"\",\"-\")","v":"-"},{"$f":"IF(Auftraggeber!O17=TRUE,\"\",\"-\")","v":"-"},{"$f":"IF(Auftraggeber!O18=TRUE,\"\",\"-\")","v":"-"},{"$f":"SUM(E4:K4)","v":0}]
["Angabe Zeitaufwand durch den Bauherrn",null,null,null,{"$f":"IF(Auftraggeber!P11=TRUE,\"\",\"-\")","v":"-"},{"$f":"IF(Auftraggeber!P12=TRUE,\"\",\"-\")","v":"-"},{"$f":"IF(Auftraggeber!P13=TRUE,\"\",\"-\")","v":"-"},{"$f":"IF(Auftraggeber!P14=TRUE,\"\",\"-\")","v":"-"},{"$f":"IF(OR(Auftraggeber!P15=TRUE,Auftraggeber!P16=TRUE),\"\",\"-\")","v":"-"},{"$f":"IF(Auftraggeber!P17=TRUE,\"\",\"-\")","v":"-"},{"$f":"IF(Auftraggeber!P18=TRUE,\"\",\"-\")","v":"-"},0]
["SUMME",null,null,null,{"$f":"SUM(E3:E5)","v":0},{"$f":"SUM(F3:F5)","v":0},0,0,0,0,0,0]
["Vergütungsart",null,null,null,{"$f":"Zusammenstellung!C3","v":"-"},{"$f":"Zusammenstellung!C4","v":"-"},{"$f":"Zusammenstellung!C5","v":"-"},{"$f":"Zusammenstellung!C6","v":"-"},{"$f":"Zusammenstellung!C7","v":"-"},{"$f":"Zusammenstellung!C8","v":"-"},{"$f":"Zusammenstellung!C9","v":"Z"},"-"]
["Schlüsselperson",null,"Honorar-kategorie","Stunden-ansatz\n[CHF/h]","31","32","33","41","51","52","53"]
["Vorname, Name"]
["PL",null,null,{"$f":"IF(C10=\"a\",'Bemerkungen zum Angebot'!$C$15,IF(C10=\"b\",'Bemerkungen zum Angebot'!$D$15,IF(C10=\"c\",'Bemerkungen zum Angebot'!$E$15,IF(C10=\"d\",'Bemerkungen zum Angebot'!$F$15,IF(C10=\"e\",'Bemerkungen zum Angebot'!$G$15,IF(C10=\"f\",'Bemerkungen zum Angebot'!$H$15,IF(C10=\"g\",'Bemerkungen zum Angebot'!$I$15,0)))))))","v":0},null,null,null,null,null,null,null,{"$f":"SUM(E10:K10)","v":0},{"$f":"D10*L10","v":0}]
["PL Stv.",null,null,{"$f":"IF(C11=\"a\",'Bemerkungen zum Angebot'!$C$15,IF(C11=\"b\",'Bemerkungen zum Angebot'!$D$15,IF(C11=\"c\",'Bemerkungen zum Angebot'!$E$15,IF(C11=\"d\",'Bemerkungen zum Angebot'!$F$15,IF(C11=\"e\",'Bemerkungen zum Angebot'!$G$15,IF(C11=\"f\",'Bemerkungen zum Angebot'!$H$15,IF(C11=\"g\",'Bemerkungen zum Angebot'!$I$15,0)))))))","v":0},null,null,null,null,null,null,null,0,0]
["BL",null,null,{"$f":"IF(C12=\"a\",'Bemerkungen zum Angebot'!$C$15,IF(C12=\"b\",'Bemerkungen zum Angebot'!$D$15,IF(C12=\"c\",'Bemerkungen zum Angebot'!$E$15,IF(C12=\"d\",'Bemerkungen zum Angebot'!$F$15,IF(C12=\"e\",'Bemerkungen zum Angebot'!$G$15,IF(C12=\"f\",'Bemerkungen zum Angebot'!$H$15,IF(C12=\"g\",'Bemerkungen zum Angebot'!$I$15,0)))))))","v":0},null,null,null,null,null,null,null,0,0]
["BL Stv.",null,null,{"$f":"IF(C13=\"a\",'Bemerkungen zum Angebot'!$C$15,IF(C13=\"b\",'Bemerkungen zum Angebot'!$D$15,IF(C13=\"c\",'Bemerkungen zum Angebot'!$E$15,IF(C13=\"d\",'Bemerkungen zum Angebot'!$F$15,IF(C13=\"e\",'Bemerkungen zum Angebot'!$G$15,IF(C13=\"f\",'Bemerkungen zum Angebot'!$H$15,IF(C13=\"g\",'Bemerkungen zum Angebot'!$I$15,0)))))))","v":0},null,null,null,null,null,null,null,0,0]
["SB",null,null,{"$f":"IF(C14=\"a\",'Bemerkungen zum Angebot'!$C$15,IF(C14=\"b\",'Bemerkungen zum Angebot'!$D$15,IF(C14=\"c\",'Bemerkungen zum Angebot'!$E$15,IF(C14=\"d\",'Bemerkungen zum Angebot'!$F$15,IF(C14=\"e\",'Bemerkungen zum Angebot'!$G$15,IF(C14=\"f\",'Bemerkungen zum Angebot'!$H$15,IF(C14=\"g\",'Bemerkungen zum Angebot'!$I$15,0)))))))","v":0},null,null,null,null,null,null,null,0,0]
[null,null,null,{"$f":"IF(C15=\"a\",'Bemerkungen zum Angebot'!$C$15,IF(C15=\"b\",'Bemerkungen zum Angebot'!$D$15,IF(C15=\"c\",'Bemerkungen zum Angebot'!$E$15,IF(C15=\"d\",'Bemerkungen zum Angebot'!$F$15,IF(C15=\"e\",'Bemerkungen zum Angebot'!$G$15,IF(C15=\"f\",'Bemerkungen zum Angebot'!$H$15,IF(C15=\"g\",'Bemerkungen zum Angebot'!$I$15,0)))))))","v":0},null,null,null,null,null,null,null,0,0]
["Summe [h]",null,null,null,{"$f":"SUM(E10:E15)","v":0},{"$f":"SUM(F10:F15)","v":0},0,0,0,0,0,{"$f":"SUM(L10:L15)","v":0},"-"]
["Summe [CHF]",null,null,null,{"$f":"$D$10*E10+$D$11*E11+$D$12*E12+$D$13*E13+$D$14*E14+$D$15*E15","v":0},{"$f":"$D$10*F10+$D$11*F11+$D$12*F12+$D$13*F13+$D$14*F14+$D$15*F15","v":0},0,0,0,0,0,"-",{"$f":"SUM(M10:M15)","v":0},"A","gelbe Felder ausfüllen, Farbe ändert sich nach Eingabe"]
[null,null,null,null,null,null,null,null,null,null,null,null,null,"B"]
["Weitere Mitarbeiter",null,null,null,null,null,null,null,null,null,null,null,null,"C"]
["Vorname, Name",null,null,null,null,null,null,null,null,null,null,null,null,"D"]
[null,null,null,{"$f":"IF(C21=\"a\",'Bemerkungen zum Angebot'!$C$15,IF(C21=\"b\",'Bemerkungen zum Angebot'!$D$15,IF(C21=\"c\",'Bemerkungen zum Angebot'!$E$15,IF(C21=\"d\",'Bemerkungen zum Angebot'!$F$15,IF(C21=\"e\",'Bemerkungen zum Angebot'!$G$15,IF(C21=\"f\",'Bemerkungen zum Angebot'!$H$15,IF(C21=\"g\",'Bemerkungen zum Angebot'!$I$15,0)))))))","v":0},null,null,null,null,null,null,null,{"$f":"SUM(E21:K21)","v":0},{"$f":"D21*L21","v":0},"E"]
[null,null,null,{"$f":"IF(C22=\"a\",'Bemerkungen zum Angebot'!$C$15,IF(C22=\"b\",'Bemerkungen zum Angebot'!$D$15,IF(C22=\"c\",'Bemerkungen zum Angebot'!$E$15,IF(C22=\"d\",'Bemerkungen zum Angebot'!$F$15,IF(C22=\"e\",'Bemerkungen zum Angebot'!$G$15,IF(C22=\"f\",'Bemerkungen zum Angebot'!$H$15,IF(C22=\"g\",'Bemerkungen zum Angebot'!$I$15,0)))))))","v":0},null,null,null,null,null,null,null,0,0,"F"]
[null,null,null,{"$f":"IF(C23=\"a\",'Bemerkungen zum Angebot'!$C$15,IF(C23=\"b\",'Bemerkungen zum Angebot'!$D$15,IF(C23=\"c\",'Bemerkungen zum Angebot'!$E$15,IF(C23=\"d\",'Bemerkungen zum Angebot'!$F$15,IF(C23=\"e\",'Bemerkungen zum Angebot'!$G$15,IF(C23=\"f\",'Bemerkungen zum Angebot'!$H$15,IF(C23=\"g\",'Bemerkungen zum Angebot'!$I$15,0)))))))","v":0},null,null,null,null,null,null,null,0,0,"G"]
[null,null,null,{"$f":"IF(C24=\"a\",'Bemerkungen zum Angebot'!$C$15,IF(C24=\"b\",'Bemerkungen zum Angebot'!$D$15,IF(C24=\"c\",'Bemerkungen zum Angebot'!$E$15,IF(C24=\"d\",'Bemerkungen zum Angebot'!$F$15,IF(C24=\"e\",'Bemerkungen zum Angebot'!$G$15,IF(C24=\"f\",'Bemerkungen zum Angebot'!$H$15,IF(C24=\"g\",'Bemerkungen zum Angebot'!$I$15,0)))))))","v":0},null,null,null,null,null,null,null,0,0]
[null,null,null,{"$f":"IF(C25=\"a\",'Bemerkungen zum Angebot'!$C$15,IF(C25=\"b\",'Bemerkungen zum Angebot'!$D$15,IF(C25=\"c\",'Bemerkungen zum Angebot'!$E$15,IF(C25=\"d\",'Bemerkungen zum Angebot'!$F$15,IF(C25=\"e\",'Bemerkungen zum Angebot'!$G$15,IF(C25=\"f\",'Bemerkungen zum Angebot'!$H$15,IF(C25=\"g\",'Bemerkungen zum Angebot'!$I$15,0)))))))","v":0},null,null,null,null,null,null,null,0,0]
[null,null,null,{"$f":"IF(C26=\"a\",'Bemerkungen zum Angebot'!$C$15,IF(C26=\"b\",'Bemerkungen zum Angebot'!$D$15,IF(C26=\"c\",'Bemerkungen zum Angebot'!$E$15,IF(C26=\"d\",'Bemerkungen zum Angebot'!$F$15,IF(C26=\"e\",'Bemerkungen zum Angebot'!$G$15,IF(C26=\"f\",'Bemerkungen zum Angebot'!$H$15,IF(C26=\"g\",'Bemerkungen zum Angebot'!$I$15,0)))))))","v":0},null,null,null,null,null,null,null,0,0]
[null,null,null,{"$f":"IF(C27=\"a\",'Bemerkungen zum Angebot'!$C$15,IF(C27=\"b\",'Bemerkungen zum Angebot'!$D$15,IF(C27=\"c\",'Bemerkungen zum Angebot'!$E$15,IF(C27=\"d\",'Bemerkungen zum Angebot'!$F$15,IF(C27=\"e\",'Bemerkungen zum Angebot'!$G$15,IF(C27=\"f\",'Bemerkungen zum Angebot'!$H$15,IF(C27=\"g\",'Bemerkungen zum Angebot'!$I$15,0)))))))","v":0},null,null,null,null,null,null,null,0,0]
[null,null,null,{"$f":"IF(C28=\"a\",'Bemerkungen zum Angebot'!$C$15,IF(C28=\"b\",'Bemerkungen zum Angebot'!$D$15,IF(C28=\"c\",'Bemerkungen zum Angebot'!$E$15,IF(C28=\"d\",'Bemerkungen zum Angebot'!$F$15,IF(C28=\"e\",'Bemerkungen zum Angebot'!$G$15,IF(C28=\"f\",'Bemerkungen zum Angebot'!$H$15,IF(C28=\"g\",'Bemerkungen zum Angebot'!$I$15,0)))))))","v":0},null,null,null,null,null,null,null,0,0]
[null,null,null,{"$f":"IF(C29=\"a\",'Bemerkungen zum Angebot'!$C$15,IF(C29=\"b\",'Bemerkungen zum Angebot'!$D$15,IF(C29=\"c\",'Bemerkungen zum Angebot'!$E$15,IF(C29=\"d\",'Bemerkungen zum Angebot'!$F$15,IF(C29=\"e\",'Bemerkungen zum Angebot'!$G$15,IF(C29=\"f\",'Bemerkungen zum Angebot'!$H$15,IF(C29=\"g\",'Bemerkungen zum Angebot'!$I$15,0)))))))","v":0},null,null,null,null,null,null,null,0,0]
[null,null,null,{"$f":"IF(C30=\"a\",'Bemerkungen zum Angebot'!$C$15,IF(C30=\"b\",'Bemerkungen zum Angebot'!$D$15,IF(C30=\"c\",'Bemerkungen zum Angebot'!$E$15,IF(C30=\"d\",'Bemerkungen zum Angebot'!$F$15,IF(C30=\"e\",'Bemerkungen zum Angebot'!$G$15,IF(C30=\"f\",'Bemerkungen zum Angebot'!$H$15,IF(C30=\"g\",'Bemerkungen zum Angebot'!$I$15,0)))))))","v":0},null,null,null,null,null,null,null,0,0]
["Summe [h]",null,null,null,{"$f":"SUM(E21:E30)","v":0},0,0,0,0,0,0,{"$f":"SUM(L21:L30)","v":0},"-"]
["Summe [CHF]",null,null,null,{"$f":"$D$21*E21+$D$22*E22+$D$23*E23+$D$24*E24+$D$25*E25+$D$26*E26+$D$27*E27+$D$28*E28+$D$29*E29+$D$30*E30","v":0},0,0,0,0,0,0,"-",{"$f":"SUM(M21:M31)","v":0}]
[]
[]
["Total [h]",null,null,null,{"$f":"E16+E31","v":0},{"$f":"F16+F31","v":0},{"$f":"G16+G31","v":0},0,0,0,0,{"$f":"L16+L31","v":0},"-",{"$f":"IF(L16/(L16+L31)<0.4,1,0)","v":{"$error":"#DIV/0!"}}]
["Total [CHF]",null,null,null,0,0,0,0,0,0,0,"-",{"$f":"M17+M32","v":0}]
[]
[]
[]
[null,null,null,null,{"$f":"IF(E3=\"-\",TRUE,FALSE)","v":true},true,true,true,true,true,false]